bitfinex-derivatives/quotes_ETHF0:USTF0_20250524
["timestamp","ask_amount","ask_price","bid_price","bid_amount"]
[1748126291504,2.46527,2533.6,2533.5,8.27e-06]
[1748126291704,20.22427,2533.6,2533.5,8.27e-06]
[1748126291911,19.4352,2533.6,2533.5,0.78910827]
[1748126292111,17.759,2533.6,2533.5,0.78910827]
[1748126292427,3.15020004,2533.7,2533.6,0.78907]
[1748126292621,3.15020004,2533.7,2533.6,2.20387]
[1748126292916,6.89186327,2533.8,2533.7,0.78904]
[1748126293108,6.89186327,2533.8,2533.7,2.20384]
[1748126293614,5.55676327,2533.8,2533.7,2.20384]
[1748126293804,6.34577327,2533.8,2533.7,1.4148]
[1748126294010,0.78904,2533.7,2533.6,16.276]
[1748126294211,2.07824,2533.7,2533.5,0.78909827]
[1748126294411,2.07824,2533.7,2533.6,16.276]
[1748126294715,0.78904,2533.7,2533.6,17.06507]
[1748126295219,3.99683,2533.8,2533.6,16.276]
[1748126295421,3.99683,2533.8,2533.6,17.06507]
[1748126295717,3.99682,2533.8,2533.6,17.06506]
[1748126296617,3.2078,2533.8,2533.7,0.78904]
[1748126297107,3.2078,2533.8,2533.6,16.276]
[1748126297312,0.78904,2533.7,2533.6,16.276]
[1748126298919,3.2078,2533.8,2533.6,17.06506]
[1748126299423,0.78904,2533.7,2533.6,16.276]
[1748126300015,0.78907,2533.6,2533.5,8.27e-06]
[1748126301413,5.78907,2533.6,2533.5,8.27e-06]
[1748126301614,6.09407,2533.6,2533.5,8.27e-06]
[1748126304322,18.85407,2533.6,2533.5,8.27e-06]
[1748126304517,23.85407,2533.6,2533.5,8.27e-06]
[1748126305021,27.00427004,2533.6,2533.5,8.27e-06]
[1748126305616,22.00427004,2533.6,2533.5,8.27e-06]
[1748126306022,22.00527004,2533.6,2533.5,8.27e-06]
[1748126307720,18.85507,2533.6,2533.5,8.27e-06]
[1748126307927,18.85607,2533.6,2533.5,8.27e-06]
[1748126310017,20.22837,2533.6,2533.5,8.27e-06]
[1748126312829,23.37857004,2533.6,2533.5,8.27e-06]
[1748126314132,26.58637004,2533.6,2533.5,8.27e-06]
[1748126318234,8.82437004,2533.6,2533.5,8.27e-06]
[1748126318434,7.45207004,2533.6,2533.5,8.27e-06]
[1748126318939,7.45207004,2533.6,2533.5,1.38930827]
[1748126319132,7.45207004,2533.6,2533.5,2.03380827]
[1748126319332,6.65526932,2533.6,2533.5,2.03380827]
[1748126320337,3.44746932,2533.6,2533.5,2.03380827]
[1748126322936,6.65526932,2533.6,2533.5,8.27e-06]
[1748126323337,27.88226932,2533.6,2533.5,8.27e-06]
[1748126323735,25.52887,2533.6,2533.5,8.27e-06]
[1748126326638,22.06487,2533.6,2533.5,8.27e-06]
[1748126327742,25.98652397,2533.6,2533.5,8.27e-06]
[1748126330135,30.98652397,2533.6,2533.5,8.27e-06]
[1748126331441,25.98652397,2533.6,2533.5,8.27e-06]
[1748126332943,8.22352397,2533.6,2533.5,8.27e-06]
[1748126333144,25.98752397,2533.6,2533.5,8.27e-06]
[1748126333344,8.22352397,2533.6,2533.5,8.27e-06]
[1748126333543,22.06587,2533.6,2533.5,8.27e-06]
[1748126338051,18.85807,2533.6,2533.5,8.27e-06]
[1748126338243,25.98726135,2533.6,2533.5,8.27e-06]
[1748126340352,8.22326135,2533.6,2533.5,8.27e-06]
[1748126341458,7.43905606,2533.6,2533.5,8.27e-06]
[1748126344465,7.13405606,2533.6,2533.5,8.27e-06]
[1748126345562,3.99687,2533.6,2533.5,8.27e-06]
[1748126345955,0.78907,2533.6,2533.5,8.27e-06]
[1748126346354,3.99687,2533.6,2533.5,8.27e-06]
[1748126347960,2.35213879,2533.6,2533.5,5.00000827]
[1748126348160,2.35213879,2533.6,2533.5,6.37270827]
[1748126348361,3.14120879,2533.6,2533.5,6.37270827]
[1748126348663,0.78906,2533.7,2533.5,7.16180827]
[1748126348863,0.78906,2533.7,2533.6,1.3727]
[1748126349362,0.78906,2533.7,2533.6,6.3727]
[1748126349564,0.78901,2533.8,2533.6,7.16177]
[1748126349756,0.78901,2533.8,2533.7,2.083]
[1748126351868,0.78901,2533.8,2533.7,18.266]
[1748126356973,5.55993879,2533.9,2533.7,18.266]
[1748126357175,3.99678,2533.9,2533.8,1.4239]
[1748126357411,3.99678,2533.9,2533.8,2.0893]
[1748126363471,6.34891879,2533.9,2533.8,2.0893]
[1748126364178,3.14111879,2533.9,2533.8,2.0893]
[1748126364370,6.34891879,2533.9,2533.8,2.0893]
[1748126365882,7.05231879,2533.9,2533.8,2.0893]
[1748126367483,3.84451879,2533.9,2533.8,2.0893]
[1748126367684,7.05231879,2533.9,2533.8,2.0893]
[1748126367984,4.70018,2533.9,2533.8,2.0893]
[1748126368886,1.49238,2533.9,2533.8,2.0893]
[1748126369085,4.70018,2533.9,2533.8,2.0893]
[1748126370681,3.2078,2533.9,2533.8,2.87831]
[1748126370885,3.2078,2533.9,2533.8,2.0893]
[1748126371087,3.2078,2533.9,2533.8,2.87831]
[1748126371687,3.99678,2533.9,2533.8,2.0893]
[1748126372087,0.78898,2533.9,2533.8,2.0893]
[1748126372591,2.35412679,2534.0,2533.8,2.0893]
[1748126372793,2.35412679,2534.0,2533.9,1.93372298]
[1748126372982,3.14307679,2534.0,2533.9,1.93372298]
[1748126373385,2.35412679,2534.0,2533.9,2.72270298]
[1748126373585,2.35412679,2534.0,2533.9,2.16548]
[1748126373788,3.14307679,2534.0,2533.9,2.72276864]
[1748126374090,0.78895,2534.0,2533.9,2.72276864]
[1748126374390,0.78895,2534.0,2533.9,1.93378864]
[1748126375591,0.78895,2534.0,2533.9,1.93411648]
[1748126375787,0.78895,2534.0,2533.9,2.72309648]
[1748126377397,0.78895,2534.0,2533.9,2.72301878]
[1748126378300,2.83666827,2534.1,2534.0,0.78895]
[1748126378501,2.18586827,2534.1,2534.0,2.70988878]
[1748126378795,1.39692827,2534.1,2534.0,2.70988878]
[1748126378995,0.00592827,2534.1,2534.0,2.70988878]
[1748126379191,0.00592827,2534.1,2534.0,2.70972146]
[1748126380498,0.00592827,2534.1,2534.0,5.91752146]
[1748126381201,0.00592827,2534.1,2534.0,5.9174216]
[1748126383010,0.00592827,2534.1,2534.0,5.91722768]
[1748126387497,2.35412679,2534.5,2534.4,0.78882]
[1748126387703,2.35412679,2534.5,2534.4,17.47971734]
[1748126388406,3.2078,2534.6,2534.5,0.78879]
[1748126388606,3.2078,2534.6,2534.5,2.6331651]
[1748126390301,2.10103,2534.7,2534.6,0.78876]
[1748126390497,0.00592,2534.8,2534.7,0.78873]
[1748126390698,0.00592,2534.8,2534.7,1.34514662]
[1748126390908,0.79462,2534.8,2534.7,1.34514662]
[1748126391107,2.21442,2534.8,2534.7,1.34514662]
[1748126391501,1.42572,2534.8,2534.7,1.34514662]
[1748126392306,1.42572,2534.8,2534.7,2.75384662]
[1748126395204,2.21442,2534.8,2534.7,2.75384662]
[1748126395406,1.42572,2534.8,2534.7,2.75384662]
[1748126395811,1.42572,2534.8,2534.7,2.19743]
[1748126396005,1.42572,2534.8,2534.7,2.75348431]
[1748126397413,1.42572,2534.8,2534.7,2.75351448]
[1748126400307,1.42572,2534.8,2534.7,2.75376605]
[1748126400904,1.42572,2534.8,2534.7,18.83776605]
[1748126401110,2.21442,2534.8,2534.7,18.83776605]
[1748126401511,1.42572,2534.8,2534.7,18.83776086]
[1748126403322,5.56192679,2535.2,2535.1,0.78861]
[1748126403520,5.56192679,2535.2,2535.1,17.42791226]
[1748126403820,6.35049679,2535.2,2535.1,16.63930226]
[1748126404015,7.73769679,2535.2,2535.1,16.63930226]
[1748126404721,5.38357,2535.2,2535.1,16.63930226]
[1748126405208,5.38357,2535.2,2535.1,16.63923139]
[1748126406313,5.38357,2535.2,2535.1,17.42784139]
[1748126407422,4.595,2535.2,2535.1,17.42784139]
[1748126409823,1.3872,2535.2,2535.1,17.42784139]
[1748126411922,0.6847,2535.4,2535.3,0.78854]
[1748126412122,0.6847,2535.4,2535.3,1.34477139]
[1748126412622,0.6847,2535.4,2535.3,2.72850452]
[1748126413016,1.9965,2535.4,2535.3,2.72191417]
[1748126414129,5.56192679,2535.8,2535.3,1.93996452]
[1748126414419,0.78844,2535.7,2535.6,0.78844]
[1748126414621,2.07494,2535.7,2535.6,17.4256754]
[1748126414818,1.2865,2535.7,2535.6,17.4256754]
[1748126415421,2.07492,2535.7,2535.6,17.4256754]
[1748126415622,1.2865,2535.7,2535.6,17.4256754]
[1748126416626,1.2865,2535.7,2535.6,18.1242754]
[1748126417025,1.2865,2535.7,2535.6,19.4231754]
[1748126418224,1.3623,2535.8,2535.7,0.78842]
[1748126418428,5.86692679,2536.1,2536.0,0.78833]
[1748126418615,2.35412679,2536.1,2536.0,17.42358437]
[1748126419520,2.35412679,2536.5,2536.4,0.7882]
[1748126419717,2.35412679,2536.5,2536.4,17.42345437]
[1748126419917,3.65522679,2536.5,2536.4,17.42291881]
[1748126420326,3.13718606,2536.8,2536.7,0.78811]
[1748126420630,3.13718606,2536.8,2536.7,4.55162881]
[1748126420830,2.6389,2537.0,2536.9,0.78805]
[1748126421027,2.6389,2537.0,2536.9,17.42276881]
[1748126421624,2.6389,2537.0,2536.9,17.41887262]
[1748126421826,3.13718606,2537.1,2537.0,0.78801]
[1748126422131,1.9933,2537.5,2537.3,0.78792]
[1748126422429,0.688,2537.5,2537.4,17.41571262]
[1748126423333,0.688,2537.5,2537.4,16.62782262]
[1748126423535,0.688,2537.5,2537.4,17.41571262]
[1748126424227,3.2078,2537.9,2537.4,16.62782262]
[1748126424425,3.2078,2537.9,2537.5,0.55182262]
[1748126424628,0.78782,2537.7,2537.6,16.62482262]
[1748126425030,3.2078,2537.9,2537.6,16.62482262]
[1748126425230,3.2078,2537.9,2537.7,1.33726128]
[1748126425433,3.99554,2537.9,2537.8,0.54946276]
[1748126425840,10.17719,2537.9,2537.4,0.00591634]
[1748126426046,3.99566,2537.5,2537.4,0.00591634]
[1748126426335,5.17751,2537.5,2536.8,41.1121]
[1748126426543,3.2078,2537.2,2536.9,16.62241165]
[1748126426728,0.78798,2537.1,2537.0,0.54941165]
[1748126426933,0.78798,2537.1,2536.5,16.073]
[1748126426934,3.2078,2537.2,2536.6,0.78814]
[1748126427137,1.3733,2537.4,2536.7,0.54944446]
[1748126427138,3.99588,2536.8,2536.7,0.54944446]
[1748126427335,3.99588,2536.8,2536.5,0.00591634]
[1748126427336,20.9488,2536.8,2536.5,0.00591634]
[1748126427537,0.78814,2536.6,2536.5,0.00591634]
[1748126428337,0.78838,2535.9,2535.5,3.99626]
[1748126428541,3.2078,2536.0,2535.6,16.57578677]
[1748126428837,0.78839,2535.8,2535.7,0.54978677]
[1748126429037,0.78842,2535.7,2535.6,16.026]
[1748126429238,3.99622,2535.7,2535.6,16.57582809]
[1748126429646,4.07171626,2535.7,2535.6,16.57582809]
[1748126429843,4.07171626,2535.7,2535.4,0.00591634]
[1748126429844,0.78848,2535.5,2535.4,0.00591634]
[1748126430032,1.97129,2535.5,2534.6,16.026]
[1748126430237,0.7887,2534.8,2534.7,0.55005508]
[1748126430438,3.9965,2534.8,2534.7,0.55005508]
[1748126430840,3.2078,2535.2,2534.7,0.55005508]
[1748126431040,0.00591634,2535.0,2534.8,0.55005508]
[1748126431334,0.00591634,2535.0,2534.9,0.55005508]
[1748126432236,0.00591634,2535.0,2534.9,1.87205508]
[1748126432735,3.2078,2535.5,2535.2,0.78855]
[1748126432935,0.78851,2535.4,2535.3,5.28e-06]
[1748126433139,0.78851,2535.4,2534.5,3.21371634]
[1748126433140,1.97133,2535.4,2534.5,0.00591634]
[1748126433347,3.2078,2534.8,2534.5,0.00591634]
[1748126433645,3.2078,2534.8,2534.6,16.03]
[1748126433835,3.2078,2534.8,2534.5,0.79469634]
[1748126434042,3.8873,2534.8,2534.5,0.00591634]
[1748126434443,3.8873,2534.8,2534.5,16.03591634]
[1748126434642,0.78873,2534.7,2534.5,16.03591634]
[1748126434843,3.8873,2534.8,2534.5,16.03591634]
[1748126435647,0.78876,2534.6,2534.5,0.00591634]
[1748126435849,8.8873,2534.8,2533.5,3.99689]
[1748126436151,3.2078,2534.3,2533.8,16.03]
[1748126436343,20.9508,2534.7,2533.8,20.5335]
[1748126436540,1.3494,2534.3,2533.8,21.3225]
[1748126436943,1.3494,2534.3,2533.8,20.53941634]
[1748126437145,1.3494,2534.3,2534.2,0.78889]
[1748126437337,3.2078,2534.7,2534.2,20.02968]
[1748126437537,1.3494,2534.6,2534.3,1.2957]
[1748126437741,1.3494,2534.6,2534.2,3.99668]
[1748126437942,0.78889,2534.2,2534.1,16.033]
[1748126438342,0.78898,2533.9,2533.8,0.00591634]
[1748126439050,20.53286,2534.0,2533.8,0.00591634]
[1748126439249,19.7439,2534.0,2533.8,0.00591634]
[1748126439449,20.53286,2534.0,2533.8,0.00591634]
[1748126440249,0.78898,2533.9,2533.8,0.00591634]
[1748126440449,2.09668,2533.9,2533.8,0.00591634]
[1748126441551,1.3077,2533.9,2533.8,0.00591634]
[1748126442050,2.09668,2533.9,2533.8,0.00591634]
[1748126443453,1.9727,2533.6,2532.9,3.2078]
[1748126443660,0.78932,2532.9,2532.4,3.2078]
[1748126443953,3.2078,2532.6,2532.3,16.038]
[1748126444144,2.11642,2532.8,2532.4,1.322]
[1748126444345,1.3271,2532.8,2532.4,1.322]
[1748126444540,3.21371634,2532.9,2532.4,1.322]
[1748126444541,0.00591634,2532.9,2532.8,0.78932]
[1748126444751,0.00591634,2532.9,2532.8,16.038]
[1748126445346,0.00591634,2532.9,2532.8,21.82732]
[1748126445543,1.4044,2533.6,2532.8,22.4379]
[1748126445758,3.2078,2533.8,2533.7,0.78904]
[1748126445958,3.2078,2533.8,2533.7,16.82904]
[1748126446457,0.78884,2534.4,2533.7,21.04]
[1748126446649,0.00591634,2534.3,2533.8,1.30901634]
[1748126446847,0.00591634,2534.3,2534.1,0.7889]
[1748126447156,0.00591634,2534.3,2533.8,2.00481634]
[1748126447157,0.00591634,2534.3,2534.2,17.3431]
[1748126448550,0.00591634,2534.3,2533.8,0.70171634]
[1748126448744,0.78891,2534.2,2533.9,18.12538]
[1748126448951,0.78895,2534.0,2533.9,17.3364]
[1748126449157,0.78895,2534.0,2533.9,16.04]
[1748126449955,2.18185,2534.0,2533.9,16.04]
[1748126451551,0.78898,2533.9,2533.8,0.00591634]
[1748126451754,5.34148,2533.9,2533.8,0.00591634]
[1748126452058,11.03888,2533.9,2533.8,6.34e-06]
[1748126452259,11.34388,2533.9,2533.8,6.34e-06]
[1748126452759,29.09888,2533.9,2533.8,6.34e-06]
[1748126453662,6.03888,2533.9,2533.8,6.34e-06]
[1748126455250,3.99678,2533.9,2533.8,6.34e-06]
[1748126455455,8.99678,2533.9,2533.8,6.34e-06]
[1748126456158,10.38708,2533.9,2533.8,6.34e-06]
[1748126457060,5.38708,2533.9,2533.8,6.34e-06]
[1748126457650,10.38708,2533.9,2533.8,6.34e-06]
[1748126458768,44.66308,2533.9,2533.8,6.34e-06]
[1748126459161,47.80026606,2533.9,2533.8,6.34e-06]
[1748126460162,48.58447135,2533.9,2533.8,6.34e-06]
[1748126460665,27.06947135,2533.9,2533.8,6.34e-06]
[1748126460858,9.30847135,2533.9,2533.8,6.34e-06]
[1748126461460,9.30847135,2533.9,2532.9,1.3292]
[1748126461461,0.78926,2533.0,2532.9,1.3292]
[1748126461661,0.78938,2532.6,2532.5,16.519]
[1748126461861,0.78945,2532.4,2532.2,3.2078]
[1748126462067,0.78945,2532.4,2532.3,16.519]
[1748126463158,0.00591634,2532.6,2532.3,21.519]
[1748126463353,0.78945,2532.4,2532.3,16.519]
[1748126463866,0.78951,2532.2,2532.1,0.00591634]
[1748126464065,0.78951,2532.2,2532.1,16.52691634]
[1748126464867,0.78951,2532.2,2532.1,17.92531634]
[1748126465059,0.78951,2532.2,2532.1,1.40431634]
[1748126465256,3.99731,2532.2,2532.1,17.92531634]
[1748126465460,3.99731,2532.2,2532.1,1.40431634]
[1748126465973,3.99731,2532.2,2532.1,6.40431634]
[1748126466453,3.99731,2532.2,2532.1,1.40431634]
[1748126466860,3.99731,2532.2,2532.1,6.34e-06]
[1748126467061,0.78969,2531.6,2531.5,18.574]
[1748126468862,3.2078,2531.8,2531.5,23.574]
[1748126469068,0.78968,2531.6,2531.5,2.051]
[1748126469361,0.78968,2531.6,2531.5,18.574]
[1748126470167,0.78968,2531.6,2531.5,2.051]
[1748126470362,0.78968,2531.6,2531.5,16.525]
[1748126470661,0.78975,2531.4,2531.3,0.00591634]
[1748126471063,3.99755,2531.4,2531.3,0.00591634]
[1748126471263,3.2078,2532.0,2531.3,5.00591634]
[1748126471469,0.78965,2531.8,2531.4,5.41644]
[1748126471665,4.5421,2532.0,2531.4,5.41644]
[1748126471666,0.78968,2531.6,2531.5,16.525]
[1748126472568,4.5421,2532.0,2531.5,21.525]
[1748126472768,4.5421,2532.0,2531.6,2.6797]
[1748126472959,3.8702,2532.5,2531.7,1.3061]
[1748126473272,2.34418858,2532.6,2532.5,0.7894]
[1748126473461,2.34418858,2532.6,2532.5,17.3154]
[1748126473666,0.00591634,2532.6,2532.5,21.526]
[1748126473861,0.79528634,2532.6,2532.5,21.526]
[1748126474175,0.00591634,2532.6,2532.5,21.526]
[1748126474363,11.86919777,2533.2,2532.5,24.7338]
[1748126474667,12.65840777,2533.2,2532.8,3.2078]
[1748126474969,3.2078,2533.2,2532.9,16.526]
[1748126475170,3.997,2533.2,2532.9,17.8666]
[1748126475467,1.3174,2533.6,2533.0,0.6766]
[1748126475468,0.78922,2533.1,2533.0,0.6766]
[1748126475669,0.78922,2533.1,2533.0,17.2006]
[1748126475868,0.78922,2533.1,2533.0,0.6766]
[1748126476169,0.78922,2533.1,2533.0,17.2006]
[1748126477970,0.78928,2532.9,2532.8,6.34e-06]
[1748126478371,0.7894,2532.5,2532.4,1.4037]
[1748126478575,0.78953,2532.1,2532.0,1.3246]
[1748126478774,0.78956,2532.0,2531.7,3.2078]
[1748126478972,2.08696,2532.0,2531.9,17.4782541]
[1748126479176,2.08696,2532.0,2531.9,16.523]
[1748126479374,1.97402,2531.9,2531.3,16.523]
[1748126479579,3.2078,2531.7,2531.3,16.52891634]
[1748126479781,0.79552634,2531.9,2531.5,3.9975]
[1748126479982,0.00591634,2531.9,2531.8,3.99742]
[1748126480275,5.1814,2532.4,2531.8,19.7308]
[1748126480480,0.78959,2531.9,2531.8,3.2078]
[1748126480672,0.78959,2531.9,2531.8,16.523]
[1748126481574,3.21371634,2532.1,2531.8,16.524]
[1748126481770,0.78959,2531.9,2531.8,16.524]
[1748126482276,0.00591634,2532.1,2531.8,24.7318]
[1748126482576,0.78968,2531.6,2531.5,3.2078]
[1748126482770,0.78975,2531.4,2531.3,0.00591634]
[1748126482974,0.78975,2531.4,2531.3,16.52991634]
[1748126483274,0.78975,2531.4,2531.3,0.00591634]
[1748126483579,0.78975,2531.4,2531.3,6.34e-06]
[1748126484172,5.78975,2531.4,2531.3,6.34e-06]
[1748126484372,0.78975,2531.4,2531.3,6.34e-06]
[1748126484572,5.78975,2531.4,2531.3,6.34e-06]
[1748126485271,22.31675,2531.4,2531.3,6.34e-06]
[1748126485472,40.08575,2531.4,2531.3,6.34e-06]
[1748126487579,42.41730067,2531.4,2531.3,6.34e-06]
[1748126488572,40.08575,2531.4,2531.3,6.34e-06]
[1748126488974,24.98405,2531.4,2531.3,6.34e-06]
[1748126490783,7.20509298,2531.4,2531.3,6.34e-06]
[1748126490983,24.98009298,2531.4,2531.3,6.34e-06]
[1748126491187,2.20509298,2531.4,2531.3,6.34e-06]
[1748126491375,22.30879077,2531.4,2531.3,6.34e-06]
[1748126491569,4.53379077,2531.4,2531.3,6.34e-06]
[1748126491777,22.30879077,2531.4,2531.3,6.34e-06]
[1748126492175,19.98009298,2531.4,2531.3,6.34e-06]
[1748126493276,2.20509298,2531.4,2531.3,6.34e-06]
[1748126495978,24.98109298,2531.4,2531.3,6.34e-06]
[1748126497485,27.30979077,2531.4,2531.3,6.34e-06]
[1748126500680,9.53379077,2531.4,2531.3,6.34e-06]
[1748126500983,27.31079077,2531.4,2531.3,6.34e-06]
[1748126501479,24.98209298,2531.4,2531.3,6.34e-06]
[1748126502381,19.98209298,2531.4,2531.3,6.34e-06]
[1748126502978,24.98209298,2531.4,2531.3,6.34e-06]
[1748126503382,6.4223,2531.4,2529.9,3.2078]
[1748126503676,0.79037,2529.4,2529.3,1.3845]
[1748126503883,3.2078,2529.5,2529.3,18.6045]
[1748126504280,3.2078,2529.5,2529.3,23.6045]
[1748126504779,0.00592827,2529.7,2529.4,3.2078]
[1748126505080,0.79031,2529.6,2529.5,1.3845]
[1748126505381,0.79037,2529.4,2529.3,17.22]
[1748126507181,0.7904,2529.3,2529.2,1.3764]
[1748126507380,0.7904,2529.3,2529.1,17.91862827]
[1748126507381,0.79043,2529.2,2529.1,0.00592827]
[1748126509887,0.79043,2529.2,2529.1,5.00592827]
[1748126510086,0.79043,2529.2,2529.1,6.35072827]
[1748126511782,0.79043,2529.2,2529.1,1.35072827]
[1748126512079,4.524,2529.4,2528.3,40.53788597]
[1748126512286,3.2078,2528.8,2528.4,18.6271]
[1748126512587,0.79065,2528.5,2528.4,21.8349]
[1748126512988,0.79065,2528.5,2528.4,23.6271]
[1748126514388,0.79063,2528.6,2528.4,24.41777]
[1748126514680,3.2078,2529.1,2528.5,3.2078]
[1748126514886,0.79061,2528.7,2528.6,1.308]
[1748126515280,0.79061,2528.7,2528.6,6.9934]
[1748126515478,0.79061,2528.7,2528.6,19.2224]
[1748126516484,0.79072,2528.3,2528.2,0.00401181]
[1748126516686,3.2078,2528.3,2528.2,0.00401181]
[1748126516890,1.97603,2529.3,2528.2,25.44081181]
[1748126517189,1.97617,2529.1,2528.5,3.99844]
[1748126517393,0.7906,2528.7,2528.6,17.229]
[1748126517587,17.789,2528.9,2528.7,0.79059]
[1748126517786,0.79056,2528.8,2528.7,1.3608]
[1748126518087,0.79072,2528.3,2528.2,0.00401181]
[1748126518990,17.789,2528.4,2528.2,25.76981181]
[1748126519189,17.789,2528.4,2528.2,20.76981181]
[1748126519386,0.79072,2528.3,2528.2,3.21181181]
[1748126519587,19.108,2528.3,2528.2,3.21181181]
[1748126519792,17.789,2528.3,2528.2,3.21181181]
[1748126520187,17.789,2528.3,2528.2,4.00256181]
[1748126520387,0.7907,2528.4,2528.2,3.21181181]
[1748126520588,17.791,2528.6,2528.2,20.77281181]
[1748126520788,18.58165,2528.6,2528.3,0.6641]
[1748126521087,17.791,2528.6,2528.3,0.6641]
[1748126521286,3.2078,2528.8,2528.7,0.79059]
[1748126522190,1.383,2529.3,2529.1,0.79046]
[1748126522398,1.97609,2529.2,2528.6,17.561]
[1748126522591,0.79059,2528.7,2528.6,17.561]
[1748126522792,0.79057,2528.8,2528.6,18.3516]
[1748126523193,0.79059,2528.7,2528.6,17.561]
[1748126523393,1.383,2529.1,2528.6,17.561]
[1748126523596,0.79058,2528.8,2528.6,18.35162]
[1748126523797,0.79059,2528.7,2528.6,17.561]
[1748126523998,2.11279,2528.7,2528.6,17.561]
[1748126524604,0.79072,2528.3,2528.2,1.81e-06]
[1748126524891,3.99852,2528.3,2528.2,1.81e-06]
[1748126525099,21.79052,2528.3,2528.2,1.81e-06]
[1748126525594,26.79052,2528.3,2528.2,1.81e-06]
[1748126525801,8.99852,2528.3,2528.2,1.81e-06]
[1748126526000,10.32072,2528.3,2528.2,1.81e-06]
[1748126526199,40.67372,2528.3,2528.2,1.81e-06]
[1748126526497,45.67372,2528.3,2528.2,1.81e-06]
[1748126529197,5.32072,2528.3,2528.2,1.81e-06]
[1748126529502,48.00427403,2528.3,2528.2,1.81e-06]
[1748126530204,12.64527403,2528.3,2528.2,1.81e-06]
[1748126530503,45.68172,2528.3,2528.2,1.81e-06]
[1748126532615,48.80006892,2528.3,2528.2,1.81e-06]
[1748126533408,31.00606892,2528.3,2528.2,1.81e-06]
[1748126533612,43.80406892,2528.3,2528.2,1.81e-06]
[1748126534205,48.80406892,2528.3,2528.2,1.81e-06]
[1748126534907,45.68572,2528.3,2528.2,1.81e-06]
[1748126535509,40.68672,2528.3,2528.2,1.81e-06]
[1748126536413,40.68772,2528.3,2528.2,1.81e-06]
[1748126538119,45.68772,2528.3,2528.2,1.81e-06]
[1748126538418,10.32072,2528.3,2528.2,1.81e-06]
[1748126538622,45.68872,2528.3,2528.2,1.81e-06]
[1748126538921,0.79109,2527.1,2527.0,1.3397]
[1748126539118,0.79109,2527.1,2526.7,3.3659]
[1748126539119,0.79115,2526.9,2526.8,1.4138]
[1748126539616,0.79115,2526.9,2526.8,6.4138]
[1748126540821,18.59115,2526.9,2526.8,6.4138]
[1748126543523,18.59115,2526.9,2526.8,1.4138]
[1748126544015,0.00592827,2527.1,2526.8,6.4138]
[1748126544220,17.80792827,2527.1,2527.0,3.2078]
[1748126544417,18.59901827,2527.1,2527.0,4.6906]
[1748126544618,18.60001827,2527.1,2527.0,9.6906]
[1748126545614,0.00592827,2527.1,2527.0,10.48172]
[1748126545817,17.803,2527.2,2527.0,9.6906]
[1748126546127,17.803,2527.2,2527.1,0.79109]
[1748126546321,17.803,2527.2,2527.0,9.6906]
[1748126546522,17.803,2527.2,2527.1,0.79109]
[1748126546723,0.79104,2527.3,2527.1,0.79107]
[1748126546927,0.79104,2527.3,2527.2,1.357]
[1748126547123,0.79115,2526.9,2526.8,0.00592827]
[1748126547424,0.79115,2526.9,2526.8,1.36292827]
[1748126550027,0.79115,2526.9,2526.8,0.00592827]
[1748126552628,5.0,2526.9,2525.7,3.2078]
[1748126552825,0.79147,2525.9,2525.7,3.2078]
[1748126553023,17.803,2525.9,2525.7,3.2078]
[1748126553333,17.803,2525.9,2525.8,7.2387]
[1748126553629,17.803,2525.9,2525.8,7.406]
[1748126554021,0.00592827,2526.1,2526.0,0.79144]
[1748126554225,17.804,2526.7,2526.4,0.7913]
[1748126554531,0.79125,2526.6,2526.5,0.3255]
[1748126556029,3.21372827,2526.8,2526.5,0.3255]
[1748126556229,21.0118,2527.2,2527.1,0.79109]
[1748126556425,18.59508,2527.2,2526.8,17.515]
[1748126556633,17.804,2527.2,2526.8,17.515]
[1748126556832,17.805,2527.4,2527.1,3.2078]
[1748126557032,17.805,2527.4,2527.2,0.1673]
[1748126557228,17.805,2527.3,2527.2,0.1673]
[1748126557537,17.805,2527.3,2527.2,0.95836]
[1748126557732,3.21372827,2527.6,2527.2,22.6823]
[1748126557931,3.21372827,2527.6,2527.2,17.6823]
[1748126558135,0.00592827,2527.6,2527.5,0.79097]
[1748126560129,0.00592827,2527.6,2527.5,5.79097]
[1748126560631,2.32783173,2528.4,2528.3,0.79072]
[1748126560827,2.32783173,2528.4,2528.3,18.30372]
[1748126561022,2.32783173,2528.4,2528.3,23.30372]
[1748126561230,17.804,2528.7,2528.3,22.513]
[1748126561534,17.804,2528.7,2528.5,0.79064]
[1748126561925,0.00592827,2528.8,2528.7,0.79059]
[1748126562329,0.00592827,2528.8,2528.6,3.9984]
[1748126562523,0.00592827,2528.8,2528.7,18.30059]
[1748126562734,0.00592827,2528.8,2528.7,17.51]
[1748126563430,0.00592827,2528.8,2528.7,18.30059]
[1748126563938,5.53563173,2529.7,2528.8,1.97637]
[1748126564135,1.3062,2529.5,2529.2,0.79042]
[1748126564435,1.3062,2529.5,2529.3,17.51]
[1748126564639,1.97609,2529.2,2528.2,20.72372827]
[1748126564939,1.97609,2529.2,2528.2,0.00592827]
[1748126564940,3.2078,2528.5,2528.2,0.00592827]
[1748126565237,18.59062,2528.6,2528.2,4.00445827]
[1748126565434,3.99845,2528.5,2528.4,0.71388597]
[1748126565632,23.10165,2528.5,2528.4,0.71388597]
[1748126565831,5.30465,2528.5,2528.4,0.71388597]
[1748126566035,23.10165,2528.5,2528.4,0.71388597]
[1748126566442,0.79072,2528.3,2528.2,0.00592827]
[1748126567541,22.311,2528.5,2528.2,0.00592827]
[1748126567835,0.79071,2528.4,2528.2,0.00592827]
[1748126568038,1.3994,2528.3,2528.2,0.00592827]
[1748126568240,1.3994,2528.3,2528.2,0.79667827]
[1748126568439,1.39413241,2528.3,2528.2,0.00592827]
[1748126569545,1.39413241,2528.3,2528.2,0.79667827]
[1748126570141,1.39413241,2528.3,2528.2,0.00592827]
[1748126571343,1.39413241,2528.3,2528.2,0.79667827]
[1748126571546,1.39413241,2528.3,2528.2,0.00592827]
[1748126572441,1.39413241,2528.3,2528.2,0.79667827]
[1748126572943,1.39413241,2528.3,2528.2,0.00592827]
[1748126574046,2.18485241,2528.3,2528.2,0.00592827]
[1748126575249,1.39413241,2528.3,2528.2,0.79667827]
[1748126575454,3.2078,2529.1,2528.6,0.79061]